bitfinex/quotes_BTCUSD_20250730
["timestamp","ask_amount","ask_price","bid_price","bid_amount"]
[1753914721264,4.856e-05,117570.0,117560.0,1.25626216]
[1753914721471,4.856e-05,117570.0,117560.0,1.24775587]
[1753914722113,4.856e-05,117570.0,117560.0,1.25626216]
[1753914722774,4.856e-05,117570.0,117560.0,1.25526216]
[1753914722975,4.856e-05,117570.0,117560.0,1.25626216]
[1753914723138,4.856e-05,117570.0,117560.0,1.25526216]
[1753914723546,4.856e-05,117570.0,117560.0,1.25626216]
[1753914724018,4.856e-05,117570.0,117560.0,1.24775587]
[1753914724222,4.856e-05,117570.0,117560.0,1.25626216]
[1753914724574,4.856e-05,117570.0,117560.0,1.24775587]
[1753914724973,4.856e-05,117570.0,117560.0,1.25626216]
[1753914725383,4.856e-05,117570.0,117560.0,1.24775587]
[1753914725804,4.856e-05,117570.0,117560.0,0.98663465]
[1753914725963,4.856e-05,117570.0,117560.0,1.25626209]
[1753914726454,4.856e-05,117570.0,117560.0,1.26476816]
[1753914727655,4.856e-05,117570.0,117560.0,1.26476823]
[1753914729555,4.856e-05,117570.0,117560.0,1.24775587]
[1753914729760,4.856e-05,117570.0,117560.0,0.46439221]
[1753914729968,4.856e-05,117570.0,117560.0,1.24775587]
[1753914730124,4.856e-05,117570.0,117560.0,0.98663465]
[1753914734011,4.856e-05,117570.0,117560.0,0.67098876]
[1753914734214,0.00205856,117570.0,117560.0,0.80026876]
[1753914734842,0.00205856,117570.0,117560.0,0.1116373]
[1753914735047,0.05953856,117570.0,117560.0,0.2157573]
[1753914735256,0.05953856,117570.0,117560.0,0.47687852]
[1753914736827,0.05953856,117570.0,117560.0,0.73799974]
[1753914739893,0.04383856,117570.0,117560.0,0.73799974]
[1753914740864,0.05973856,117570.0,117560.0,0.73799974]
[1753914742391,0.05973856,117570.0,117560.0,0.2157573]
[1753914742612,0.05973856,117570.0,117560.0,0.73799974]
[1753914743247,0.04383856,117570.0,117560.0,0.91022563]
[1753914743459,0.01735856,117570.0,117560.0,0.93286563]
[1753914748429,0.04230856,117570.0,117560.0,0.76273974]
[1753914748639,0.06090856,117570.0,117560.0,0.47691852]
[1753914748843,0.06090856,117570.0,117560.0,0.2157973]
[1753914749046,0.06699942,117570.0,117560.0,0.0864773]
[1753914749282,0.06090856,117570.0,117560.0,0.2157573]
[1753914751717,0.06090856,117570.0,117560.0,0.0864773]
[1753914751934,0.06090856,117570.0,117560.0,0.2157973]
[1753914753619,0.06090856,117570.0,117560.0,0.13132]
[1753914757794,0.56090856,117570.0,117560.0,0.13132]
[1753914757995,0.06090856,117570.0,117560.0,0.13132]
[1753914758255,0.56090856,117570.0,117560.0,0.13132]
[1753914758463,0.06090856,117570.0,117560.0,0.13132]
[1753914760070,0.56090856,117570.0,117560.0,0.13132]
[1753914760264,0.06090856,117570.0,117560.0,0.13132]
[1753914760596,0.56090856,117570.0,117560.0,0.13132]
[1753914760800,0.06090856,117570.0,117560.0,0.13132]
[1753914764497,0.06090856,117570.0,117560.0,0.15406]
[1753914771096,0.06699942,117570.0,117560.0,0.13132]
[1753914771312,0.06699942,117570.0,117560.0,0.002]
[1753914771548,0.06912648,117570.0,117560.0,0.13132]
[1753914772113,0.90699942,117570.0,117560.0,0.13132]
[1753914772317,0.40699942,117570.0,117560.0,0.13132]
[1753914772739,0.40090856,117570.0,117560.0,0.13132]
[1753914782103,0.40090856,117570.0,117560.0,0.41572367]
[1753914782524,0.40090856,117570.0,117560.0,0.15477]
[1753914783987,0.40090856,117570.0,117560.0,0.13132]
[1753914784412,0.40090856,117570.0,117560.0,0.002]
[1753914784659,0.44099942,117570.0,117560.0,0.13132]
[1753914784875,4.85738242,117570.0,117560.0,0.13132]
[1753914785090,4.86536746,117570.0,117560.0,0.13132]
[1753914785758,4.86536746,117570.0,117560.0,0.12932]
[1753914785969,4.85792746,117570.0,117560.0,0.12932]
[1753914787641,4.408943,117560.0,117540.0,0.02666]
[1753914787866,4.766803,117550.0,117540.0,0.02552]
[1753914788008,4.793403,117550.0,117540.0,0.15484]
[1753914788414,4.790253,117550.0,117540.0,0.15484]
[1753914788626,4.766803,117550.0,117540.0,0.15484]
[1753914789219,0.35786,117550.0,117540.0,0.41579367]
[1753914789424,0.35786,117550.0,117540.0,0.41679367]
[1753914789704,0.51786,117550.0,117540.0,0.42000367]
[1753914790881,0.51786,117550.0,117540.0,0.42100367]
[1753914792077,0.56287132,117550.0,117540.0,0.42100367]
[1753914794970,0.50216,117550.0,117540.0,0.42100367]
[1753914797854,0.50216,117550.0,117540.0,0.17665]
[1753914798058,0.50216,117550.0,117540.0,0.43760367]
[1753914799601,0.50216,117550.0,117540.0,0.42100367]
[1753914799837,0.54111,117550.0,117540.0,0.41779367]
[1753914800041,0.5996603,117550.0,117540.0,0.41779367]
[1753914800790,0.5996603,117550.0,117540.0,0.15684]
[1753914800991,0.5996603,117550.0,117540.0,0.41779367]
[1753914802978,0.6028103,117550.0,117540.0,0.15684]
[1753914803190,0.6028103,117550.0,117540.0,0.41779367]
[1753914803928,4.5117533,117550.0,117540.0,0.41779367]
[1753914808008,4.453203,117550.0,117540.0,0.41779367]
[1753914809775,4.468903,117550.0,117540.0,0.13132]
[1753914809987,4.808903,117550.0,117540.0,0.002]
[1753914810193,4.808903,117550.0,117540.0,0.13132]
[1753914810393,4.8933803,117550.0,117540.0,0.13132]
[1753914817557,4.9778576,117550.0,117540.0,0.13032]
[1753914817941,5.0034416,117550.0,117540.0,0.13032]
[1753914818137,5.00789067,117550.0,117540.0,0.13032]
[1753914820684,5.00789067,117550.0,117540.0,0.12932]
[1753914821867,5.00789067,117550.0,117540.0,0.13134]
[1753914822080,4.88212937,117550.0,117540.0,0.12932]
[1753914822742,4.89812937,117550.0,117540.0,0.12932]
[1753914823960,4.91144632,117550.0,117540.0,0.12932]
[1753914825199,0.50250332,117550.0,117540.0,0.12932]
[1753914825561,4.91144632,117550.0,117540.0,0.12932]
[1753914827230,4.89544632,117550.0,117540.0,0.12932]
[1753914829133,4.89544632,117550.0,117540.0,0.15339]
[1753914829544,4.89544632,117550.0,117540.0,0.12932]
[1753914830097,0.50250332,117550.0,117540.0,0.12932]
[1753914830318,4.91144632,117550.0,117540.0,0.12932]
[1753914831715,4.89544632,117550.0,117540.0,0.12932]
[1753914833680,4.91044632,117550.0,117540.0,0.12932]
[1753914833932,4.91044632,117550.0,117530.0,0.35621967]
[1753914833933,0.33256,117540.0,117530.0,0.48553967]
[1753914834112,4.8280503,117540.0,117530.0,0.48450967]
[1753914836866,4.8280503,117540.0,117530.0,0.48752967]
[1753914837478,4.8280503,117540.0,117530.0,0.50352967]
[1753914837683,4.8280503,117540.0,117530.0,0.51892967]
[1753914837961,4.8280503,117540.0,117530.0,0.257976]
[1753914838184,4.8280503,117540.0,117530.0,0.51892967]
[1753914839830,4.743573,117540.0,117530.0,0.51892967]
[1753914840407,4.741503,117540.0,117530.0,0.51892967]
[1753914841277,4.408943,117540.0,117530.0,0.77988334]
[1753914841702,4.748943,117540.0,117530.0,0.77988334]
[1753914841903,0.34,117540.0,117530.0,0.77988334]
[1753914843377,0.34,117540.0,117530.0,0.51892967]
[1753914849143,0.34,117540.0,117530.0,0.45078367]
[1753914857364,0.37719591,117540.0,117530.0,0.18983]
[1753914857577,0.37917591,117540.0,117530.0,0.45078367]
[1753914857782,0.36652,117540.0,117530.0,0.44776367]
[1753914858185,0.36652,117540.0,117530.0,0.43236367]
[1753914858395,0.36949,117540.0,117530.0,0.43236367]
[1753914858601,4.778433,117540.0,117530.0,0.12932]
[1753914858814,4.794533,117540.0,117530.0,0.12932]
[1753914859013,4.794533,117540.0,117530.0,0.39027367]
[1753914859014,4.8790103,117540.0,117530.0,0.39027367]
[1753914859858,4.778433,117540.0,117530.0,0.39027367]
[1753914860062,4.778433,117540.0,117530.0,0.41524367]
[1753914860887,0.36949,117540.0,117530.0,0.41524367]
[1753914861106,4.778433,117540.0,117530.0,0.41524367]
[1753914864574,4.778433,117540.0,117530.0,0.43280367]
[1753914865578,4.81367444,117540.0,117530.0,0.17185]
[1753914865803,4.408943,117530.0,117520.0,0.05592]
[1753914865984,4.438193,117530.0,117520.0,0.51511097]
[1753914866364,0.02925,117530.0,117520.0,0.51511097]
[1753914866989,0.02925,117530.0,117520.0,0.51611097]
[1753914867192,0.02925,117530.0,117520.0,0.77711323]
[1753914867606,0.02925,117530.0,117520.0,0.77915323]
[1753914867985,0.02925,117530.0,117520.0,0.78015323]
[1753914869391,0.02925,117530.0,117520.0,0.25824589]
[1753914869610,0.02925,117530.0,117520.0,0.78015323]
[1753914870887,0.02925,117530.0,117520.0,0.25824589]
[1753914871098,0.07123914,117530.0,117520.0,0.78015323]
[1753914871308,0.07123914,117530.0,117520.0,0.76355323]
[1753914871522,0.02925,117530.0,117520.0,0.76355323]
[1753914871736,4.79612006,117530.0,117520.0,0.00204859]
[1753914871950,4.810493,117530.0,117520.0,0.13144859]
[1753914878422,4.470493,117530.0,117520.0,0.13144859]
[1753914879412,4.5549703,117530.0,117520.0,0.13144859]
[1753914882719,4.470493,117530.0,117520.0,0.13144859]
[1753914884520,4.810493,117530.0,117520.0,0.00204859]
[1753914884750,4.8949703,117530.0,117520.0,0.13156859]
[1753914884974,4.9204943,117530.0,117520.0,0.13156859]
[1753914885193,4.95904069,117530.0,117520.0,0.13156859]
[1753914885400,5.04351799,117530.0,117520.0,0.13156859]
[1753914885608,5.05202645,117530.0,117520.0,4.859e-05]
[1753914885785,5.04351799,117530.0,117520.0,4.859e-05]
[1753914885985,5.05202645,117530.0,117520.0,4.859e-05]
[1753914886196,5.04351799,117530.0,117520.0,4.859e-05]
[1753914886979,5.17307799,117530.0,117520.0,4.859e-05]
[1753914887383,5.17407799,117530.0,117520.0,4.859e-05]
[1753914887593,5.18739822,117530.0,117520.0,4.859e-05]
[1753914887993,5.19590668,117530.0,117520.0,4.859e-05]
[1753914888199,5.18739822,117530.0,117520.0,4.859e-05]
[1753914888412,5.1788899,117530.0,117520.0,4.859e-05]
[1753914888625,0.7699469,117530.0,117520.0,4.859e-05]
[1753914888832,5.19590646,117530.0,117520.0,4.859e-05]
[1753914889044,5.38352479,117530.0,117520.0,4.859e-05]
[1753914889260,5.35800101,117530.0,117520.0,4.859e-05]
[1753914889463,5.37395291,117530.0,117520.0,4.859e-05]
[1753914890297,5.35800101,117530.0,117520.0,4.859e-05]
[1753914890835,0.94905801,117530.0,117520.0,4.859e-05]
[1753914891052,5.37637763,117530.0,117520.0,4.859e-05]
[1753914896430,5.42751763,117530.0,117520.0,4.859e-05]
[1753914897241,5.42327763,117530.0,117520.0,4.859e-05]
[1753914897405,5.43369747,117530.0,117520.0,4.859e-05]
[1753914898203,5.44964687,117530.0,117520.0,4.859e-05]
[1753914898441,5.45762188,117530.0,117520.0,4.859e-05]
[1753914898920,5.45762437,117530.0,117520.0,4.859e-05]
[1753914900291,5.47094588,117530.0,117520.0,4.859e-05]
[1753914900708,5.45762437,117530.0,117520.0,4.859e-05]
[1753914900915,1.04868137,117530.0,117520.0,4.859e-05]
[1753914901341,5.45762437,117530.0,117520.0,4.859e-05]
[1753914902461,5.44911605,117530.0,117520.0,4.859e-05]
[1753914904776,5.46243727,117530.0,117520.0,4.859e-05]
[1753914904991,5.33287727,117530.0,117520.0,4.859e-05]
[1753914905194,5.46267727,117530.0,117520.0,4.859e-05]
[1753914906786,5.12733943,117530.0,117520.0,4.859e-05]
[1753914906990,4.92006347,117530.0,117520.0,0.05995859]
[1753914907193,4.58006347,117530.0,117520.0,0.05995859]
[1753914907409,4.92006347,117530.0,117520.0,0.05995859]
[1753914909035,0.51112047,117530.0,117520.0,0.05995859]
[1753914909235,4.92006347,117530.0,117520.0,0.05995859]
[1753914909440,5.00454077,117530.0,117520.0,0.05995859]
[1753914910268,4.99121955,117530.0,117520.0,0.05995859]
[1753914910886,4.99119614,117530.0,117520.0,0.05995859]
[1753914911705,4.90671884,117530.0,117520.0,0.05995859]
[1753914912392,0.49777584,117530.0,117520.0,0.05995859]
[1753914912909,4.90671884,117530.0,117520.0,0.05995859]
[1753914913258,4.90672819,117530.0,117520.0,0.05995859]
[1753914913691,4.92004781,117530.0,117520.0,0.05995859]
[1753914913889,5.00452511,117530.0,117520.0,0.05995859]
[1753914914334,4.92004781,117530.0,117520.0,0.05995859]
[1753914915164,0.51110481,117530.0,117520.0,0.05995859]
[1753914915330,4.92004781,117530.0,117520.0,0.05995859]
[1753914916151,0.51110481,117530.0,117520.0,0.05995859]
[1753914916358,4.92004781,117530.0,117520.0,0.05995859]
[1753914916536,5.00452511,117530.0,117520.0,0.05995859]
[1753914916742,4.92004781,117530.0,117520.0,0.05995859]
[1753914917154,0.51110481,117530.0,117520.0,0.05995859]
[1753914917350,4.92004781,117530.0,117520.0,0.05995859]
[1753914918149,0.51110481,117530.0,117520.0,0.05995859]
[1753914918355,4.92004781,117530.0,117520.0,0.05995859]
[1753914920027,5.00452511,117530.0,117520.0,0.05995859]
[1753914921054,4.9861719,117530.0,117520.0,0.05995859]
[1753914921720,4.9016946,117530.0,117520.0,0.05995859]
[1753914922122,4.90169638,117530.0,117520.0,0.05995859]
[1753914922370,0.38268708,117530.0,117520.0,0.40825921]
[1753914922585,4.77831046,117530.0,117520.0,0.40825921]
[1753914922791,4.77831046,117530.0,117520.0,0.05995859]
[1753914923443,0.36937998,117530.0,117520.0,0.05995859]
[1753914923679,4.77832298,117530.0,117520.0,0.05995859]
[1753914923891,4.75439207,117530.0,117520.0,0.05995859]
[1753914924005,4.76796687,117530.0,117520.0,0.05995859]
[1753914926660,0.35902387,117530.0,117520.0,0.05995859]
[1753914926860,4.76796687,117530.0,117520.0,0.05995859]
[1753914929922,4.75439207,117530.0,117520.0,0.05995859]
[1753914934307,4.78138207,117530.0,117520.0,0.01740859]
[1753914934514,4.78461207,117530.0,117520.0,0.01534859]
[1753914934904,4.78138207,117530.0,117520.0,0.01534859]
[1753914937148,4.78138207,117530.0,117520.0,0.03868859]
[1753914937963,4.78138207,117530.0,117520.0,0.04072859]
[1753914938168,4.75638207,117530.0,117520.0,0.06012859]
[1753914939793,4.84085937,117530.0,117520.0,0.06012859]
[1753914940445,4.75638207,117530.0,117520.0,0.06012859]
[1753914941278,4.78138207,117530.0,117520.0,0.06012859]
[1753914942073,0.37243907,117530.0,117520.0,0.06012859]
[1753914942291,4.78138207,117530.0,117520.0,0.06012859]
[1753914943435,4.78138207,117530.0,117520.0,0.04372859]
[1753914944174,0.37243907,117530.0,117520.0,0.04372859]
[1753914944613,4.78138207,117530.0,117520.0,0.04072859]
[1753914946204,0.37243907,117530.0,117520.0,0.04072859]
[1753914946416,4.78138207,117530.0,117520.0,0.04072859]
[1753914948880,4.78138207,117530.0,117520.0,0.01534859]
[1753914949669,4.80533447,117530.0,117520.0,0.01534859]
[1753914949880,4.78138207,117530.0,117520.0,0.01534859]
[1753914950629,4.79735264,117530.0,117520.0,0.01534859]
[1753914951581,4.80533939,117530.0,117520.0,0.03868859]
[1753914952160,4.88981669,117530.0,117520.0,0.03868859]
[1753914952560,4.80533939,117530.0,117520.0,0.03868859]
[1753914952720,4.78033939,117530.0,117520.0,0.05952859]
[1753914953580,4.80533939,117530.0,117520.0,0.05952859]
[1753914954505,4.78033939,117530.0,117520.0,0.05952859]
[1753914954715,4.77834939,117530.0,117520.0,0.32065373]
[1753914954924,4.75439207,117530.0,117520.0,0.58177887]
[1753914955122,0.341,117530.0,117520.0,0.58177887]
[1753914955549,0.001,117530.0,117520.0,0.66625617]
[1753914956291,0.34,117540.0,117520.0,0.66625617]
[1753914956494,0.34798652,117540.0,117530.0,0.44781514]
[1753914956707,0.34798652,117540.0,117530.0,0.44982514]
[1753914956910,0.34798652,117540.0,117530.0,0.53671829]
[1753914959708,4.82030817,117540.0,117530.0,0.1887]
[1753914960763,4.82030817,117540.0,117530.0,0.16044]
[1753914960997,4.408943,117530.0,117520.0,0.05729859]
[1753914961211,4.435113,117530.0,117520.0,0.18962859]
[1753914961419,0.02617,117530.0,117520.0,0.18962859]
[1753914961636,0.00207,117530.0,117520.0,0.18962859]
[1753914962817,0.34,117540.0,117530.0,0.0315]
[1753914963013,0.00798399,117540.0,117530.0,0.47592429]
[1753914963222,4.408943,117550.0,117540.0,0.0273]
[1753914963456,4.41692523,117550.0,117540.0,0.50768829]
[1753914963974,4.41692523,117550.0,117540.0,0.15967]
[1753914964116,4.41692523,117550.0,117540.0,0.18592]
[1753914966784,4.41692523,117550.0,117540.0,0.53393829]
[1753914967897,4.41692523,117550.0,117540.0,0.18592]
[1753914968301,4.47612516,117550.0,117540.0,0.18592]
[1753914969365,4.46814293,117550.0,117540.0,0.18592]
[1753914972511,4.47021293,117550.0,117540.0,0.18592]
[1753914974016,4.49431293,117550.0,117540.0,0.18592]
[1753914974234,4.411013,117550.0,117540.0,0.18592]
[1753914975233,4.435113,117550.0,117540.0,0.18592]
[1753914975860,0.02617,117550.0,117540.0,0.18592]
[1753914976067,4.435113,117550.0,117540.0,0.18592]
[1753914978636,4.44308791,117550.0,117540.0,0.18592]
[1753914978840,4.52756521,117550.0,117540.0,0.17472]
[1753914979086,4.52756521,117550.0,117540.0,0.17167]
[1753914981157,4.52756521,117550.0,117540.0,0.04131]
[1753914981379,4.56134521,117550.0,117540.0,0.13016]
[1753914981602,0.03430767,117570.0,117540.0,0.95850983]
[1753914981857,0.02468196,117570.0,117560.0,0.8965089]
[1753914982080,0.02468017,117570.0,117560.0,1.19896479]
[1753914982290,0.00872867,117570.0,117560.0,1.19896479]
[1753914982507,0.00872867,117570.0,117560.0,1.22521479]
[1753914982718,4.408943,117590.0,117580.0,0.0315]
[1753914982932,0.01594847,117590.0,117580.0,0.59632559]
[1753914983161,0.84008264,117590.0,117580.0,0.61952559]
[1753914983396,8.264e-05,117590.0,117580.0,0.61952559]
[1753914984220,8.264e-05,117590.0,117580.0,0.2715073]
[1753914984427,0.34008264,117590.0,117580.0,0.61952559]
[1753914984615,0.34862669,117590.0,117580.0,0.61952559]
[1753914984824,0.34008264,117590.0,117580.0,0.61952559]
[1753914985824,0.34208264,117590.0,117580.0,0.61952559]
[1753914986635,0.00208264,117590.0,117580.0,0.61952559]
[1753914988755,0.01091982,117590.0,117580.0,0.61952559]
[1753914989615,0.00891982,117590.0,117580.0,0.62255559]
[1753914990854,0.00891982,117590.0,117580.0,0.2745373]
[1753914991111,0.00891982,117590.0,117580.0,0.62555559]
[1753914991908,0.00891982,117590.0,117580.0,0.62655559]
[1753914992361,0.00891982,117590.0,117580.0,0.62555559]
[1753914992805,0.00891982,117590.0,117580.0,0.62755559]
[1753914998292,0.01687106,117590.0,117580.0,0.62755559]
[1753915000568,0.00891982,117590.0,117580.0,0.62755559]
[1753915002534,0.03874982,117590.0,117580.0,0.2197973]
[1753915002735,0.05394982,117590.0,117580.0,0.2197973]
[1753915003157,0.05394982,117590.0,117580.0,0.2196373]
[1753915003557,0.05394982,117590.0,117580.0,0.56765559]
[1753915003996,0.05394982,117590.0,117580.0,0.59162559]
[1753915006679,0.05394982,117590.0,117580.0,0.59360559]
[1753915009595,0.05394982,117590.0,117580.0,0.03095]
[1753915009814,4.4841878,117590.0,117580.0,0.005]
[1753915010035,4.48674878,117590.0,117580.0,0.13512]
[1753915010234,4.47879282,117590.0,117580.0,0.13512]
[1753915010469,4.50510229,117590.0,117580.0,0.13512]
[1753915011087,4.50510229,117590.0,117580.0,0.13516]
[1753915011326,4.58957959,117590.0,117580.0,0.005]
[1753915011534,4.92957959,117590.0,117580.0,0.13516]
[1753915013215,4.9428922,117590.0,117580.0,0.13516]
[1753915014332,4.8584149,117590.0,117580.0,0.13516]
[1753915015955,0.4494719,117590.0,117580.0,0.13516]
[1753915016137,4.8584149,117590.0,117580.0,0.13516]
[1753915016337,4.8584149,117590.0,117580.0,0.203306]
[1753915021542,4.8400653,117590.0,117580.0,0.203306]
[1753915021721,4.9245426,117590.0,117580.0,0.203306]
[1753915022026,4.92455589,117590.0,117580.0,0.203306]
[1753915022240,4.45434859,117590.0,117580.0,0.57925429]
[1753915022453,0.00891982,117590.0,117580.0,0.68023159]
[1753915022661,0.00891982,117590.0,117580.0,0.69663159]
[1753915022869,0.00891982,117590.0,117580.0,0.68023159]
[1753915024323,0.55286982,117590.0,117580.0,0.2877833]
[1753915024541,4.46181282,117590.0,117580.0,0.2877833]
[1753915025655,4.46181282,117590.0,117580.0,0.3104933]
[1753915026127,4.46181282,117590.0,117580.0,0.3124933]
[1753915026357,4.43918282,117590.0,117580.0,0.3124933]
[1753915029089,4.46181282,117590.0,117580.0,0.3124933]
[1753915031587,4.42298282,117590.0,117580.0,0.3124933]
[1753915032654,4.44561282,117590.0,117580.0,0.3124933]
[1753915032867,4.46061282,117590.0,117580.0,0.3124933]
[1753915033224,0.05166982,117590.0,117580.0,0.3124933]
[1753915033638,4.46061282,117590.0,117580.0,0.3124933]
[1753915037489,4.46061282,117590.0,117580.0,0.3104933]
[1753915042084,4.54509012,117590.0,117580.0,0.2877833]
[1753915042306,4.54509012,117590.0,117580.0,0.005]
[1753915042563,4.90169012,117590.0,117580.0,0.13508]
[1753915043480,4.90169012,117590.0,117580.0,0.13208]
[1753915044194,4.90169012,117590.0,117580.0,0.13008]
[1753915044447,4.90169012,117590.0,117580.0,0.13108]
[1753915045329,4.81721282,117590.0,117580.0,0.13108]
[1753915047078,4.81721282,117590.0,117580.0,0.13208]
[1753915048677,4.83052529,117590.0,117580.0,0.13208]
[1753915054296,0.42158229,117590.0,117580.0,0.13208]
[1753915054512,4.83052529,117590.0,117580.0,0.13208]
[1753915055347,4.91500259,117590.0,117580.0,0.13192]
[1753915058639,4.93096344,117590.0,117580.0,0.13192]
[1753915058776,4.91500259,117590.0,117580.0,0.13192]
[1753915058998,4.93096355,117590.0,117580.0,0.13192]
[1753915059432,0.52202055,117590.0,117580.0,0.13192]
[1753915059626,4.93096355,117590.0,117580.0,0.13192]
[1753915060426,0.52202055,117590.0,117580.0,0.13192]
[1753915060762,4.91500259,117590.0,117580.0,0.13192]
[1753915061717,4.91500259,117590.0,117580.0,0.002]
[1753915061718,4.92350613,117590.0,117580.0,0.002]
[1753915061932,4.94744568,117590.0,117580.0,0.002]
[1753915062137,5.17030674,117590.0,117580.0,0.002]
[1753915062345,5.17475659,117590.0,117580.0,0.002]
[1753915062553,0.76581359,117590.0,117580.0,0.002]
[1753915062776,5.17475659,117590.0,117580.0,0.002]
[1753915062984,5.17475659,117590.0,117580.0,0.001]
[1753915063602,4.780343,117580.0,117570.0,0.12988]
[1753915063816,4.809843,117580.0,117570.0,0.12988]
[1753915064035,4.425143,117570.0,117560.0,0.222946]
[1753915064215,4.454643,117570.0,117560.0,0.222946]
[1753915064633,0.05901438,117570.0,117560.0,0.222946]
[1753915064809,4.47008444,117570.0,117560.0,0.222946]
[1753915065018,4.46795738,117570.0,117560.0,0.222946]
[1753915065623,4.46795738,117570.0,117560.0,0.227946]
[1753915068477,4.49356852,117570.0,117560.0,0.227946]
[1753915069046,4.57804582,117570.0,117560.0,0.227946]
[1753915069704,4.49356852,117570.0,117560.0,0.227946]
[1753915072520,4.49356852,117570.0,117560.0,0.098066]
[1753915072760,4.49356852,117570.0,117560.0,0.227866]
[1753915073712,4.49356852,117570.0,117560.0,0.225866]
[1753915073924,4.49356852,117570.0,117560.0,0.222866]
[1753915074145,4.5588418,117570.0,117560.0,0.223866]
[1753915074488,4.5588418,117570.0,117560.0,0.225866]
[1753915075099,4.49356852,117570.0,117560.0,0.227856]
[1753915075244,4.44988852,117570.0,117560.0,0.243256]
[1753915075442,4.44786852,117570.0,117560.0,0.258456]
[1753915075655,4.44786852,117570.0,117560.0,0.261616]
[1753915076253,4.44786852,117570.0,117560.0,0.246416]
[1753915076879,4.44786852,117570.0,117560.0,0.243256]
[1753915079483,4.47583902,117570.0,117560.0,0.243256]
[1753915079823,0.06689602,117570.0,117560.0,0.243256]
[1753915080023,0.06902308,117570.0,117560.0,0.243256]
[1753915080258,4.45210558,117570.0,117560.0,0.243256]
[1753915080473,4.44997852,117570.0,117560.0,0.243256]
[1753915081073,4.44997852,117570.0,117560.0,0.258756]
[1753915081275,4.44997852,117570.0,117560.0,0.243256]
[1753915083488,4.45303852,117570.0,117560.0,0.243256]
[1753915086335,4.44997852,117570.0,117560.0,0.243256]
[1753915086777,4.45303852,117570.0,117560.0,0.243256]
[1753915087398,4.47751852,117570.0,117560.0,0.243256]
[1753915089334,4.56199582,117570.0,117560.0,0.243256]
[1753915090478,4.56199582,117570.0,117560.0,0.241266]
[1753915091527,4.56199582,117570.0,117560.0,0.200946]
[1753915091665,4.57849582,117570.0,117560.0,0.200946]
[1753915092276,4.49401852,117570.0,117560.0,0.200946]
[1753915092695,0.08507552,117570.0,117560.0,0.200946]
[1753915092915,0.08720258,117570.0,117560.0,0.200946]
[1753915093261,4.49614558,117570.0,117560.0,0.200946]
[1753915093466,4.49401852,117570.0,117560.0,0.200946]
[1753915093869,4.49401852,117570.0,117560.0,0.224956]
[1753915096023,4.49401852,117570.0,117560.0,0.200946]
[1753915098316,4.57534897,117570.0,117560.0,0.200946]
[1753915098668,4.59131569,117570.0,117560.0,0.200946]
[1753915099513,4.59929955,117570.0,117560.0,0.200946]
[1753915099840,4.5179691,117570.0,117560.0,0.200946]
[1753915101302,4.5179691,117570.0,117560.0,0.224956]
[1753915105459,4.51797128,117570.0,117560.0,0.224956]
[1753915105865,4.49401852,117570.0,117560.0,0.224956]
[1753915106070,4.51797665,117570.0,117560.0,0.224956]
[1753915108095,4.49401852,117570.0,117560.0,0.224956]
[1753915109740,4.51797701,117570.0,117560.0,0.224956]
[1753915109940,4.49401852,117570.0,117560.0,0.224956]
[1753915110553,0.08507552,117570.0,117560.0,0.224956]
[1753915110735,4.51211804,117570.0,117560.0,0.224956]
[1753915110940,4.51797727,117570.0,117560.0,0.224956]
[1753915111139,4.49401852,117570.0,117560.0,0.224956]
[1753915111356,4.46647852,117570.0,117560.0,0.48802597]
[1753915111563,4.43666414,117570.0,117560.0,0.50332597]
[1753915115898,0.35635378,117580.0,117560.0,0.78387594]
[1753915116114,4.78621205,117580.0,117570.0,0.27751997]
[1753915116326,4.78621205,117580.0,117570.0,0.30287997]
[1753915116758,4.78831205,117580.0,117570.0,0.30287997]
[1753915116977,0.34,117570.0,117560.0,0.071146]
[1753915117187,0.34,117570.0,117560.0,0.1306]
[1753915117188,4.810293,117570.0,117560.0,0.1306]
[1753915117396,4.810293,117570.0,117560.0,0.1296]
[1753915118086,4.810293,117570.0,117540.0,0.29972997]
[1753915118296,4.408943,117560.0,117550.0,0.197746]
[1753915118510,0.02995,117560.0,117550.0,0.197746]
[1753915118723,0.52995,117560.0,117550.0,0.48402597]
[1753915118939,0.52995,117560.0,117550.0,0.50002597]
[1753915119155,0.52995,117560.0,117550.0,0.37042597]
[1753915119367,0.52995,117560.0,117550.0,0.50002597]
[1753915120009,0.50514,117560.0,117550.0,0.50002597]
[1753915120627,0.50514,117560.0,117550.0,0.50302597]
[1753915120832,0.50514,117560.0,117550.0,0.242106]
[1753915121605,0.50514,117560.0,117550.0,0.244106]
[1753915123006,0.5021,117560.0,117550.0,0.244106]
[1753915123651,0.5021,117560.0,117550.0,0.59202444]
[1753915124005,0.5021,117560.0,117550.0,0.60862444]
[1753915125041,0.5,117560.0,117550.0,0.60862444]
[1753915125222,4.408943,117560.0,117550.0,0.61185444]
[1753915129323,4.408943,117570.0,117560.0,0.0159]
[1753915129526,4.775853,117570.0,117560.0,0.0159]
[1753915129736,4.775853,117570.0,117560.0,0.04126]
[1753915129737,4.778893,117570.0,117560.0,0.04126]
[1753915129948,4.754083,117570.0,117560.0,0.04126]
[1753915130374,4.778893,117570.0,117560.0,0.04126]
[1753915130562,4.778893,117570.0,117560.0,0.04226]
[1753915131459,4.778893,117570.0,117560.0,0.04426]
[1753915131924,4.778893,117570.0,117560.0,0.04211]
[1753915132185,4.8121524,117570.0,117560.0,0.0189]
[1753915132399,4.8444524,117570.0,117560.0,0.1326]
[1753915132840,4.86042379,117570.0,117560.0,0.1326]
[1753915133084,4.8444524,117570.0,117560.0,0.1326]
[1753915134193,4.8444524,117570.0,117560.0,0.003]
[1753915134410,4.811193,117570.0,117560.0,0.1326]
[1753915136356,4.82716488,117570.0,117560.0,0.1326]
[1753915137419,4.78605488,117570.0,117560.0,0.15603]
[1753915137644,4.80999488,117570.0,117560.0,0.15603]
[1753915138059,0.38508,117570.0,117560.0,0.15603]
[1753915138902,0.36908,117570.0,117560.0,0.17143]
[1753915140285,0.34,117570.0,117560.0,0.53986844]
[1753915140491,4.748943,117580.0,117570.0,0.0154]
[1753915140696,0.36395635,117580.0,117570.0,0.45701444]
[1753915140914,0.36602635,117580.0,117570.0,0.109096]
[1753915141321,0.36900635,117580.0,117570.0,0.109096]
[1753915141526,0.37697545,117580.0,117570.0,0.109096]
[1753915142046,0.36899,117580.0,117570.0,0.109096]
[1753915142502,0.36899,117580.0,117570.0,0.106976]
[1753915142689,0.39207261,117580.0,117570.0,0.068146]
[1753915142888,0.43192858,117580.0,117570.0,0.068146]
[1753915143553,4.85683613,117580.0,117570.0,0.197746]
[1753915143776,4.87273613,117580.0,117570.0,0.197746]